Workbook

Sheet Dashboard
I1: KPI Dashboard
B5: =" "&Data!B6 -> Indicator 1 | N5: =" "&Data!B9 -> Indicator 2
B16: =" "&Data!B12 -> Indicator 3 | N16: =" "&Data!B15 -> Indicator 4

Sheet Data
F1: KPI Data
B3: Data
B5: Indicators | C5: Actual / Target | D5: JAN | E5: FEB | F5: MAR | G5: APR | H5: MAI | I5: JUN | J5: JUL | K5: AUG | L5: SEP | M5: OCT | N5: NOV | O5: DEC | P5: TOTAL
B6: Indicator 1 | C6: Actual | D6: 11588 | E6: 9189 | F6: 8001 | G6: 9736 | H6: 8686 | I6: 8560 | J6: 11611 | K6: 10576 | L6: 10386 | M6: 10710 | N6: 11636 | O6: 10253 | P6: =SUM(D6:O6) -> 120932
C7: Target | D7: 10000 | E7: 10000 | F7: 10000 | G7: 10000 | H7: 10000 | I7: 10000 | J7: 10000 | K7: 10000 | L7: 10000 | M7: 10000 | N7: 10000 | O7: 10000 | P7: =SUM(D7:O7) -> 120000
C8: % Target | D8: =D6/D7 -> 1.1588 | E8: =E6/E7 -> 0.9189 | F8: 0.8001 | G8: 0.9736 | H8: 0.8686 | I8: 0.856 | J8: 1.1611 | K8: 1.0576 | L8: 1.0386 | M8: 1.071 | N8: 1.1636 | O8: 1.0253 | P8: 1.007766667 | Q8: =IF(P8>=1,0,1-P8) -> 0
B9: Indicator 2 | C9: Actual | D9: 8104 | E9: 8141 | F9: 10748 | G9: 11979 | H9: 8003 | I9: 11765 | J9: 10500 | K9: 11295 | L9: 9952 | M9: 9626 | N9: 8964 | O9: 8563 | P9: 117640
C10: Target | D10: 10000 | E10: 10000 | F10: 10000 | G10: 10000 | H10: 10000 | I10: 10000 | J10: 10000 | K10: 10000 | L10: 10000 | M10: 10000 | N10: 10000 | O10: 10000 | P10: 120000
C11: % Target | D11: =D9/D10 -> 0.8104 | E11: =E9/E10 -> 0.8141 | F11: =F9/F10 -> 1.0748 | G11: =G9/G10 -> 1.1979 | H11: =H9/H10 -> 0.8003 | I11: =I9/I10 -> 1.1765 | J11: =J9/J10 -> 1.05 | K11: =K9/K10 -> 1.1295 | L11: =L9/L10 -> 0.9952 | M11: =M9/M10 -> 0.9626 | N11: =N9/N10 -> 0.8964 | O11: =O9/O10 -> 0.8563 | P11: =P9/P10 -> 0.9803333333 | Q11: =IF(P11>=1,0,1-P11) -> 0.01966666667
B12: Indicator 3 | C12: Actual | D12: 9764 | E12: 11245 | F12: 9696 | G12: 9374 | H12: 9533 | I12: 8531 | J12: 8781 | K12: 9892 | L12: 9882 | M12: 11964 | N12: 8883 | O12: 10023 | P12: 117568
C13: Target | D13: 10000 | E13: 10000 | F13: 10000 | G13: 10000 | H13: 10000 | I13: 10000 | J13: 10000 | K13: 10000 | L13: 10000 | M13: 10000 | N13: 10000 | O13: 10000 | P13: 120000
C14: % Target | D14: =D12/D13 -> 0.9764 | E14: =E12/E13 -> 1.1245 | F14: =F12/F13 -> 0.9696 | G14: =G12/G13 -> 0.9374 | H14: =H12/H13 -> 0.9533 | I14: =I12/I13 -> 0.8531 | J14: =J12/J13 -> 0.8781 | K14: =K12/K13 -> 0.9892 | L14: =L12/L13 -> 0.9882 | M14: =M12/M13 -> 1.1964 | N14: =N12/N13 -> 0.8883 | O14: =O12/O13 -> 1.0023 | P14: =P12/P13 -> 0.9797333333 | Q14: =IF(P14>=1,0,1-P14) -> 0.02026666667
B15: Indicator 4 | C15: Actual | D15: 8276 | E15: 8863 | F15: 8021 | G15: 9400 | H15: 8234 | I15: 9380 | J15: 10509 | K15: 11215 | L15: 8599 | M15: 10464 | N15: 11920 | O15: 8470 | P15: 113351
C16: Target | D16: 10000 | E16: 10000 | F16: 10000 | G16: 10000 | H16: 10000 | I16: 10000 | J16: 10000 | K16: 10000 | L16: 10000 | M16: 10000 | N16: 10000 | O16: 10000 | P16: 120000
C17: % Target | D17: =D15/D16 -> 0.8276 | E17: =E15/E16 -> 0.8863 | F17: =F15/F16 -> 0.8021 | G17: =G15/G16 -> 0.94 | H17: =H15/H16 -> 0.8234 | I17: =I15/I16 -> 0.938 | J17: =J15/J16 -> 1.0509 | K17: =K15/K16 -> 1.1215 | L17: =L15/L16 -> 0.8599 | M17: =M15/M16 -> 1.0464 | N17: =N15/N16 -> 1.192 | O17: =O15/O16 -> 0.847 | P17: =P15/P16 -> 0.9445916667 | Q17: =IF(P17>=1,0,1-P17) -> 0.05540833333
C20: Max | D20: =(LARGE($D$6:$O$6,1)*1.1)-D6 -> 1211.6 | E20: =(LARGE($D$6:$O$6,1)*1.1)-E6 -> 3610.6 | F20: 4798.6 | G20: 3063.6 | H20: 4113.6 | I20: 4239.6 | J20: 1188.6 | K20: 2223.6 | L20: 2413.6 | M20: 2089.6 | N20: 1163.6 | O20: 2546.6
C21: Max | D21: =(LARGE($D$9:$O$9,1)*1.1)-D9 -> 5072.9 | E21: =(LARGE($D$9:$O$9,1)*1.1)-E9 -> 5035.9 | F21: 2428.9 | G21: 1197.9 | H21: 5173.9 | I21: 1411.9 | J21: 2676.9 | K21: 1881.9 | L21: 3224.9 | M21: 3550.9 | N21: 4212.9 | O21: 4613.9
C22: Max | D22: =(LARGE($D$12:$O$12,1)*1.1)-D12 -> 3396.4 | E22: =(LARGE($D$12:$O$12,1)*1.1)-E12 -> 1915.4 | F22: 3464.4 | G22: 3786.4 | H22: 3627.4 | I22: 4629.4 | J22: 4379.4 | K22: 3268.4 | L22: 3278.4 | M22: 1196.4 | N22: 4277.4 | O22: 3137.4
C23: Max | D23: =(LARGE($D$15:$O$15,1)*1.1)-D15 -> 4836 | E23: =(LARGE($D$15:$O$15,1)*1.1)-E15 -> 4249 | F23: 5091 | G23: 3712 | H23: 4878 | I23: 3732 | J23: 2603 | K23: 1897 | L23: 4513 | M23: 2648 | N23: 1192 | O23: 4642
